[Event "NOR-ch Youth 2019"]
[Site "Skien"]
[Date "2019.11.09"]
[Round "4.12"]
[White "Unneland, Mathias"]
[Black "Lindstad, Livia"]
[Result "1-0"]
[ECO "D19"]
[WhiteElo "2029"]
[BlackElo "1527"]
[Annotator "NA RC"]
[PlyCount "119"]
[EventDate "2019.11.08"]
[EventType "swiss"]
[EventCountry "NOR"]
[SourceTitle "playchess.com"]
[Source "ChessBase"]
[SourceQuality "1"]
[TimeControl "5400+30"]

1. d4 {[%emt 0:00:00]} d5 {[%emt 0:00:00]} 2. c4 {[%emt 0:00:00]} c6 {[%emt 0:00:13]} 3. Nf3 {[%emt 0:00:00]} Nf6 {[%emt 0:00:52]} 4. Nc3 {[%emt 0:00:04]} dxc4 {[%emt 0:01:19]} 5. a4 {[%emt 0:00:07]} Bf5 {[%emt 0:00:48]} 6. e3 {[%emt 0:00:18]} e6 {[%emt 0:01:01]} 7. Bxc4 {[%emt 0:00:07]} Bb4 {[%emt 0:00:58]} 8. Qe2 {[%emt 0:00:14]} Nbd7 {[%emt 0:02:08]} 9. O-O {[%emt 0:00:24]} O-O {[%emt 0:00:38]} 10. e4 {[%emt 0:00:42]} Bg6 {[%emt 0:01:58]} 11. Bd3 {[%emt 0:01:58]} Qc7 {[%emt 0:02:53] D19: Slav Defence: 5 a4 Bf5 6 e3: Main line with 9 Qe2} (11... Re8 $11) (11... h6 12. Rd1 a6 13. Bf4 Qe7 14. h3 Rac8 15. Rac1 c5 16. e5 Bxd3 17. Qxd3 Bxc3 18. exf6 Qxf6 19. Bd6 Bxb2 20. Rc2 Bxd4 21. Bxf8 Rxf8 22. Nxd4 cxd4 23. Qxd4 Qxd4 24. Rxd4 {½-½ (37) Korobov,A (2699)-Bareev,E (2650) Wijk aan Zee 2019}) 12. e5 {[%emt 0:02:05]} Nd5 {[%emt 0:02:14]} 13. Bxg6 {[%emt 0:03:30]} hxg6 {[%emt 0:01:32]} 14. Bd2 {[%emt 0:02:35]} Be7 $146 {[%emt 0:03:12]} ({Predecessor:} 14... Nxc3 15. bxc3 Be7 16. a5 c5 17. Bg5 Nb8 18. Qe4 Nc6 19. Qh4 {½-½ (42) Anderson,P (1977)-Hollands,G (1766) Frome 2018}) 15. Bg5 {[%emt 0:04:30]} Qd8 {[%emt 0:03:48]} 16. Ne4 {[%emt 0:02:36]} N7b6 {[%emt 0:07:42]} (16... c5 $11 {keeps the balance.}) 17. Bxe7 {[%emt 0:08:16]} Nxe7 {[%emt 0:03:40]} 18. Ra3 {[%emt 0:01:39]} Nf5 {[%emt 0:02:07]} 19. Rd1 {[%emt 0:01:44]} Nd5 {[%emt 0:03:51]} 20. Nfg5 {[%emt 0:04:50]} Nh6 {[%emt 0:01:24]} 21. g3 {[%emt 0:05:28]} Qe7 {[%emt 0:03:22]} 22. h4 {[%emt 0:03:16]} Qb4 $16 {[%emt 0:02:54]} 23. h5 {[%emt 0:01:58]} Ne7 {[%emt 0:01:28]} 24. hxg6 {[%emt 0:06:03]} Nxg6 {[%emt 0:00:24]} 25. Qh5 {[%emt 0:01:00]} Qxb2 {[%emt 0:03:32]} 26. Nf6+ {[%emt 0:02:25]} Kh8 {[%emt 0:00:23]} 27. Nxf7+ {[%emt 0:00:51]} Rxf7 {[%emt 0:00:48]} 28. Qxg6 {[%emt 0:00:07]} gxf6 {[%emt 0:01:13]} 29. Qxh6+ {[%emt 0:00:06]} Kg8 {[%emt 0:01:22]} 30. Rf3 {[%emt 0:03:22]} Qc2 {[%emt 0:07:23]} 31. Rdd3 {[%emt 0:02:11]} Raf8 {[%emt 0:03:27]} 32. Rf4 {[%emt 0:01:58]} f5 {[%emt 0:03:37]} 33. Rh4 {[%emt 0:02:27]} Rg7 {[%emt 0:01:31]} 34. Qxe6+ {[%emt 0:00:13]} Rff7 {[%emt 0:00:44]} 35. Qe8+ {[%emt 0:00:58]} Rf8 {[%emt 0:00:18]} 36. Rh8+ {[%emt 0:01:28]} Kxh8 {[%emt 0:00:12]} 37. Qxf8+ {[%emt 0:00:04]} Kh7 {[%emt 0:00:18]} 38. Qxf5+ {[%emt 0:00:06]} Kg8 {[%emt 0:00:59]} 39. e6 {[%emt 0:01:54]} Rh7 {[%emt 0:01:36]} 40. Qg6+ {[%emt 0:03:26]} Rg7 {[%emt 0:02:23]} 41. Qe4 {[%emt 0:02:37]} Rh7 {[%emt 0:01:51]} 42. Re3 {[%emt 0:02:45]} Qd1+ {[%emt 0:02:01]} 43. Re1 {[%emt 0:00:07]} Qh5 {[%emt 0:00:17]} 44. Qh4 {[%emt 0:05:39]} Qxh4 {[%emt 0:01:45]} 45. gxh4 {[%emt 0:00:20]} Kf8 {[%emt 0:00:14]} 46. Re4 {[%emt 0:00:52]} Ke7 {[%emt 0:01:26]} 47. Kg2 {[%emt 0:00:58]} b5 {[%emt 0:01:59]} 48. axb5 {[%emt 0:01:20]} cxb5 {[%emt 0:00:05]} 49. d5 {[%emt 0:00:49]} a5 {[%emt 0:02:07]} 50. Kf3 {[%emt 0:01:08]} b4 {[%emt 0:03:37]} 51. Ke3 {[%emt 0:00:23]} Rh8 {[%emt 0:00:42]} 52. Kd3 {[%emt 0:03:24]} Rc8 {[%emt 0:00:56]} 53. Rc4 {[%emt 0:01:28]} Rd8 {[%emt 0:02:53]} 54. Rc7+ {[%emt 0:00:25]} Kf6 {[%emt 0:00:56]} 55. Rf7+ {[%emt 0:00:36]} Ke5 {[%emt 0:01:31]} 56. f4+ {[%emt 0:00:06]} Kxd5 {[%emt 0:00:37]} 57. Rd7+ {[%emt 0:00:08]} Kxe6 {[%emt 0:00:29]} 58. Rxd8 {[%emt 0:00:07]} b3 {[%emt 0:00:24]} 59. Kc3 {[%emt 0:00:06]} a4 {[%emt 0:00:04]} 60. Ra8 {[%emt 0:00:04]} 1-0

[Event "NOR-ch Youth 2019"]
[Site "Skien"]
[Date "2019.11.09"]
[Round "4.14"]
[White "Lye, Sverre"]
[Black "Nordquelle, Amelia"]
[Result "0-1"]
[ECO "B52"]
[WhiteElo "1779"]
[BlackElo "1670"]
[Annotator "NA RC"]
[PlyCount "80"]
[EventDate "2019.11.08"]
[EventType "swiss"]
[EventCountry "NOR"]
[SourceTitle "playchess.com"]
[Source "ChessBase"]
[SourceQuality "1"]
[TimeControl "5400+30"]

1. e4 {[%emt 0:00:00]} c5 {[%emt 0:00:42]} 2. Nf3 {[%emt 0:00:00]} d6 {[%emt 0:00:37]} 3. Bb5+ {[%emt 0:00:00]} Bd7 {[%emt 0:01:14]} 4. Bxd7+ {[%emt 0:00:00]} Qxd7 {[%emt 0:00:55]} 5. c4 {[%emt 0:00:15]} Nc6 {[%emt 0:01:45]} 6. Nc3 {[%emt 0:02:16]} g6 {[%emt 0:02:03]} 7. d4 {[%emt 0:00:55]} cxd4 {[%emt 0:00:54]} 8. Nxd4 {[%emt 0:00:11]} Bg7 {[%emt 0:00:11]} 9. Be3 {[%emt 0:00:31]} Ne5 {[%emt 0:05:02]} 10. b3 {[%emt 0:07:52]} Nh6 {[%emt 0:04:28]} 11. f3 {[%emt 0:03:52]} f5 {[%emt 0:01:22]} 12. Qd2 {[%emt 0:02:18]} Nef7 {[%emt 0:00:28]} 13. h3 {[%emt 0:10:04]} f4 {[%emt 0:04:11]} 14. Bf2 {[%emt 0:01:50]} Ng8 {[%emt 0:01:51]} 15. Nde2 {[%emt 0:04:49]} g5 {[%emt 0:03:06]} 16. h4 {[%emt 0:07:51]} h6 {[%emt 0:01:07]} 17. hxg5 {[%emt 0:03:41]} hxg5 {[%emt 0:00:28]} 18. Rxh8 {[%emt 0:00:59]} Bxh8 {[%emt 0:00:13]} 19. O-O-O {[%emt 0:01:19]} Be5 {[%emt 0:03:30]} 20. Nb5 {[%emt 0:03:35]} a6 {[%emt 0:01:57]} 21. Nbc3 {[%emt 0:01:35]} Nf6 {[%emt 0:03:54]} 22. Na4 {[%emt 0:02:59]} Qc6 {[%emt 0:07:40]} 23. Nb6 {[%emt 0:02:25]} Rd8 {[%emt 0:00:15]} 24. Rh1 {[%emt 0:04:40]} e6 {[%emt 0:02:35]} 25. Nc3 {[%emt 0:05:03]} Nd7 {[%emt 0:12:10]} 26. Nxd7 {[%emt 0:03:06]} Rxd7 {[%emt 0:00:31]} 27. Na4 {[%emt 0:08:38]} b5 {[%emt 0:08:40]} 28. Nb6 {[%emt 0:00:31]} Rb7 {[%emt 0:02:22]} 29. Qa5 {[%emt 0:00:19]} d5 {[%emt 0:01:05]} 30. exd5 {[%emt 0:03:18]} exd5 {[%emt 0:00:36]} 31. c5 {[%emt 0:01:06]} d4 {[%emt 0:06:23]} 32. b4 {[%emt 0:02:23]} Bc7 {[%emt 0:01:17]} 33. Re1+ {[%emt 0:02:20]} Kf8 {[%emt 0:02:43]} 34. Kd1 {[%emt 0:03:31]} d3 {[%emt 0:05:13]} 35. Qxa6 {[%emt 0:03:47]} Bxb6 {[%emt 0:01:29]} 36. a4 {[%emt 0:00:04]} bxa4 {[%emt 0:03:42]} 37. b5 {[%emt 0:01:48]} Qd5 {[%emt 0:02:08]} 38. Qxa4 {[%emt 0:02:39]} Ra7 {[%emt 0:01:21]} 39. Qb4 {[%emt 0:01:23]} Ra1+ {[%emt 0:00:19]} 40. Kd2 {[%emt 0:00:10]} Ba5 {[%emt 0:00:09]} 0-1

[Event "NOR-ch Youth 2019"]
[Site "Skien"]
[Date "2019.11.09"]
[Round "4.15"]
[White "Tunsjo, Axel"]
[Black "Aamodt, Peder Marcus"]
[Result "1-0"]
[ECO "B11"]
[WhiteElo "2038"]
[BlackElo "1445"]
[Annotator "NA RC"]
[PlyCount "83"]
[EventDate "2019.11.08"]
[EventType "swiss"]
[EventCountry "NOR"]
[SourceTitle "playchess.com"]
[Source "ChessBase"]
[SourceQuality "1"]
[TimeControl "5400+30"]

1. e4 {[%emt 0:00:00]} c6 {[%emt 0:00:48]} 2. Nf3 {[%emt 0:00:13]} d5 {[%emt 0:00:09]} 3. Nc3 {[%emt 0:00:03]} Nf6 {[%emt 0:00:28]} 4. Qe2 {[%emt 0:02:58]} Bg4 {[%emt 0:01:52]} 5. d3 {[%emt 0:01:54]} d4 {[%emt 0:01:38]} 6. Nd1 {[%emt 0:00:12] [#]} e5 $1 {[%emt 0:00:21]} 7. Bd2 {[%emt 0:00:37]} c5 {[%emt 0:03:18]} (7... Bd6 $17) 8. h3 {[%emt 0:00:18]} Bxf3 $1 {[%emt 0:00:23]} 9. Qxf3 {[%emt 0:00:04]} Nc6 {[%emt 0:00:10]} 10. Be2 {[%emt 0:01:18]} g6 {[%emt 0:06:15]} 11. Qg3 {[%emt 0:02:25]} Qc7 {[%emt 0:03:30]} 12. O-O {[%emt 0:00:49]} Bg7 {[%emt 0:01:20]} 13. f4 {[%emt 0:00:46]} Bh6 {[%emt 0:02:42]} 14. Qh4 {[%emt 0:01:50]} Bg7 {[%emt 0:00:09]} 15. fxe5 {[%emt 0:02:19]} Qxe5 {[%emt 0:03:44]} 16. Bf4 {[%emt 0:00:29]} Qe6 {[%emt 0:00:12]} 17. Qg3 {[%emt 0:11:00]} h5 {[%emt 0:06:26]} 18. a3 {[%emt 0:08:51]} Nd7 {[%emt 0:08:26]} 19. b3 {[%emt 0:10:28]} b5 $11 {[%emt 0:02:58]} 20. a4 {[%emt 0:05:14]} bxa4 {[%emt 0:01:02]} 21. Rxa4 {[%emt 0:00:09]} Nb4 {[%emt 0:00:14]} 22. Rf2 {[%emt 0:13:15]} Nxc2 {[%emt 0:02:36]} 23. Bxh5 {[%emt 0:01:41]} Rxh5 {[%emt 0:02:09]} 24. Rxc2 {[%emt 0:00:09]} Qxb3 {[%emt 0:00:07]} 25. Raa2 {[%emt 0:00:28]} Ne5 {[%emt 0:03:39]} 26. Nf2 {[%emt 0:01:18]} Bf6 {[%emt 0:07:30]} 27. Ng4 {[%emt 0:04:07]} Bh4 {[%emt 0:01:38]} 28. Bxe5 {[%emt 0:09:14]} Bxg3 {[%emt 0:00:12]} 29. Bxg3 {[%emt 0:00:10]} Qe6 {[%emt 0:03:08]} 30. Rf2 {[%emt 0:01:35]} f5 {[%emt 0:00:48]} 31. exf5 {[%emt 0:00:27]} Qb6 {[%emt 0:07:56]} 32. Rae2+ {[%emt 0:01:09]} Kf8 {[%emt 0:05:15]} 33. fxg6+ {[%emt 0:00:37]} Kg7 {[%emt 0:00:32]} 34. Re7+ {[%emt 0:05:37]} Kxg6 {[%emt 0:01:20]} 35. Be5 {[%emt 0:00:34]} Rxe5 {[%emt 0:02:03]} 36. Nxe5+ {[%emt 0:00:11]} Kh6 {[%emt 0:00:14]} 37. Ref7 {[%emt 0:01:01]} Qb1+ {[%emt 0:01:28]} 38. Rf1 {[%emt 0:00:37]} Qc2 {[%emt 0:01:07]} 39. R1f6+ {[%emt 0:02:42]} Kh5 {[%emt 0:00:37]} 40. g4+ {[%emt 0:00:16]} Kh4 {[%emt 0:00:12]} 41. Rh6+ {[%emt 0:00:08]} Kg3 {[%emt 0:00:09]} 42. Rf3# {[%emt 0:00:04]} 1-0

[Event "NOR-ch Youth 2019"]
[Site "Skien"]
[Date "2019.11.09"]
[Round "4.16"]
[White "Olsen, William Alexander"]
[Black "Helliesen, Lykke-Merlot"]
[Result "1-0"]
[ECO "D13"]
[WhiteElo "1842"]
[BlackElo "1619"]
[Annotator "NA RC"]
[PlyCount "49"]
[EventDate "2019.11.08"]
[EventType "swiss"]
[EventCountry "NOR"]
[SourceTitle "playchess.com"]
[Source "ChessBase"]
[SourceQuality "1"]
[TimeControl "5400+30"]

{[%evp 8,35,16,17,14,16,14,4,10,12,32767,0,0,4,3,0,0,-6,26,20,36,36,97,94,114,43,27,34,76,85]} 1. Nf3 {[%emt 0:00:00]} d5 {[%emt 0:00:00]} 2. c4 {[%emt 0:00:00]} c6 {[%emt 0:00:00]} 3. cxd5 {[%emt 0:00:00]} cxd5 {[%emt 0:00:00]} 4. d4 {[%emt 0:00:00]} Nc6 {[%emt 0:00:07]} 5. Nc3 {[%emt 0:00:00]} Nf6 {[%emt 0:00:09]} 6. Bf4 {[%emt 0:00:14]} a6 {[%emt 0:00:16]} 7. e3 {[%emt 0:00:13]} Bg4 {[%emt 0:00:49]} 8. Be2 {[%emt 0:02:03]} e6 {[%emt 0:00:24]} 9. Ne5 {[%emt 0:01:41]} Nxe5 {[%emt 0:03:41]} 10. Bxe5 {[%emt 0:00:33]} Bxe2 {[%emt 0:00:48]} 11. Qxe2 {[%emt 0:00:16]} Bd6 {[%emt 0:01:33]} 12. f4 {[%emt 0:02:44]} h5 {[%emt 0:12:41]} 13. h3 {[%emt 0:06:12]} h4 {[%emt 0:06:19]} 14. O-O {[%emt 0:05:03]} Bb4 {[%emt 0:03:54]} 15. f5 {[%emt 0:07:50]} Qe7 {[%emt 0:07:59] [#]} 16. e4 {[%emt 0:08:08]} ({Better is} 16. Rac1 $1 $16) 16... Bxc3 $1 {[%emt 0:13:11]} 17. Bxf6 {[%emt 0:00:10]} gxf6 {[%emt 0:02:55]} 18. bxc3 $16 {[%emt 0:00:04]} exf5 {[%emt 0:07:32]} 19. Rxf5 {[%emt 0:08:15]} O-O-O {[%emt 0:09:16]} 20. Re1 {[%emt 0:06:47]} Qe6 {[%emt 0:07:09]} 21. Qf3 {[%emt 0:06:23]} Rh6 {[%emt 0:04:47]} 22. c4 {[%emt 0:03:59]} dxc4 {[%emt 0:02:40]} 23. Rc5+ {[%emt 0:00:07]} Kb8 {[%emt 0:00:12]} 24. Qf4+ {[%emt 0:00:27]} Qd6 {[%emt 0:00:20]} 25. Qxh6 {[%emt 0:01:34]} 1-0

[Event "NOR-ch Youth 2019"]
[Site "Skien"]
[Date "2019.11.09"]
[Round "4.19"]
[White "Brattgjerd, Isak Vinh"]
[Black "Bjorkan, Olav"]
[Result "1/2-1/2"]
[ECO "D02"]
[WhiteElo "1699"]
[BlackElo "1407"]
[Annotator "NA RC"]
[PlyCount "79"]
[EventDate "2019.11.08"]
[EventType "swiss"]
[EventCountry "NOR"]
[SourceTitle "playchess.com"]
[Source "ChessBase"]
[SourceQuality "1"]
[TimeControl "5400+30"]

1. d4 {[%emt 0:00:00]} d5 {[%emt 0:00:00]} 2. Bf4 {[%emt 0:00:00]} Nf6 {[%emt 0:00:00]} 3. e3 {[%emt 0:00:00]} Bf5 {[%emt 0:00:13]} 4. Bd3 {[%emt 0:00:18]} Bxd3 {[%emt 0:00:19]} 5. Qxd3 {[%emt 0:00:02]} Nbd7 {[%emt 0:00:19]} 6. Nd2 {[%emt 0:00:15]} e6 {[%emt 0:00:56]} 7. Ngf3 {[%emt 0:00:22]} c5 {[%emt 0:01:14]} 8. c3 {[%emt 0:00:11]} Be7 {[%emt 0:02:29]} 9. O-O {[%emt 0:00:10]} O-O {[%emt 0:00:08]} 10. Rfe1 {[%emt 0:00:16]} Rc8 {[%emt 0:01:38]} 11. Ne5 {[%emt 0:06:51]} Nxe5 {[%emt 0:02:21]} 12. Bxe5 {[%emt 0:00:19]} Nd7 {[%emt 0:03:26]} 13. Bg3 {[%emt 0:00:10]} Nf6 {[%emt 0:01:18]} 14. f4 {[%emt 0:00:21]} Nh5 {[%emt 0:01:31]} 15. Bf2 {[%emt 0:00:44]} Qd7 {[%emt 0:01:03]} 16. g4 {[%emt 0:02:58]} Nf6 {[%emt 0:00:15]} 17. h3 {[%emt 0:00:15]} Qc6 {[%emt 0:00:38]} 18. g5 {[%emt 0:01:39]} Ne4 {[%emt 0:00:25]} 19. Nxe4 {[%emt 0:00:08]} dxe4 {[%emt 0:00:03]} 20. Qe2 {[%emt 0:00:25]} f6 {[%emt 0:04:02]} 21. h4 {[%emt 0:04:41]} fxg5 {[%emt 0:01:53]} 22. hxg5 {[%emt 0:00:19]} Qe8 {[%emt 0:03:38]} 23. Bg3 {[%emt 0:06:49]} Qg6 {[%emt 0:00:17]} 24. Kg2 {[%emt 0:00:47]} Rf5 {[%emt 0:00:19]} 25. Rh1 {[%emt 0:02:02]} Rcf8 {[%emt 0:00:19]} 26. Raf1 {[%emt 0:01:35]} Bxg5 {[%emt 0:03:53]} 27. fxg5 {[%emt 0:03:22]} Rf3 {[%emt 0:00:07]} 28. Bf4 {[%emt 0:01:18]} h6 {[%emt 0:00:08]} 29. Rxf3 {[%emt 0:01:08]} exf3+ {[%emt 0:00:07]} 30. Qxf3 {[%emt 0:05:11]} hxg5 {[%emt 0:00:24]} 31. Qh5 {[%emt 0:24:15]} Qe4+ {[%emt 0:00:25]} 32. Qf3 {[%emt 0:14:05]} Qc2+ {[%emt 0:00:15]} 33. Kg3 {[%emt 0:01:38]} gxf4+ {[%emt 0:00:09]} 34. exf4 {[%emt 0:00:07]} Qxb2 {[%emt 0:00:25]} 35. Rh2 {[%emt 0:01:15]} Qb5 {[%emt 0:02:20]} 36. Qe3 {[%emt 0:03:41]} Qc4 {[%emt 0:00:50]} 37. dxc5 {[%emt 0:02:23]} Rd8 {[%emt 0:00:08]} 38. Rd2 {[%emt 0:01:24]} Rxd2 {[%emt 0:00:38]} 39. Qxd2 {[%emt 0:00:08]} Qxc5 {[%emt 0:00:09]} 40. Qd8+ {[%emt 0:02:58]} 1/2-1/2

[Event "NOR-ch Youth 2019"]
[Site "Skien"]
[Date "2019.11.09"]
[Round "4.20"]
[White "Kierulf, Villum Brevick"]
[Black "Ostensen, Nicolai Maxime"]
[Result "0-1"]
[ECO "A46"]
[WhiteElo "1373"]
[BlackElo "1691"]
[Annotator "NA RC"]
[PlyCount "66"]
[EventDate "2019.11.08"]
[EventType "swiss"]
[EventCountry "NOR"]
[SourceTitle "playchess.com"]
[Source "ChessBase"]
[SourceQuality "1"]
[TimeControl "5400+30"]

1. Nf3 {[%emt 0:00:00]} c5 {[%emt 0:00:00]} 2. e3 {[%emt 0:00:00]} g6 {[%emt 0:00:00]} 3. d4 {[%emt 0:00:01]} cxd4 {[%emt 0:00:25]} 4. exd4 {[%emt 0:00:10]} Bg7 {[%emt 0:00:33]} 5. Nbd2 {[%emt 0:00:39]} Nf6 {[%emt 0:00:13]} 6. Bd3 {[%emt 0:00:23]} O-O {[%emt 0:00:15]} 7. O-O {[%emt 0:00:24]} Nc6 {[%emt 0:01:00]} 8. b3 {[%emt 0:00:15]} Nd5 {[%emt 0:03:43]} 9. Bb2 {[%emt 0:05:26]} d6 {[%emt 0:06:55]} 10. c4 {[%emt 0:21:46]} Nc7 {[%emt 0:03:39]} 11. h3 {[%emt 0:05:22]} Ne6 {[%emt 0:05:08]} 12. d5 {[%emt 0:04:20]} Bxb2 {[%emt 0:00:26]} 13. dxe6 {[%emt 0:00:12]} Bxe6 {[%emt 0:05:42]} 14. Rb1 {[%emt 0:00:39]} Bg7 {[%emt 0:00:14]} 15. Ng5 {[%emt 0:06:32]} Bd7 {[%emt 0:01:18]} 16. h4 {[%emt 0:08:59]} Nb4 {[%emt 0:08:14]} 17. Be2 {[%emt 0:02:47]} Nxa2 {[%emt 0:00:34]} 18. Qc2 {[%emt 0:01:51]} Nc3 {[%emt 0:01:00]} 19. Bd3 {[%emt 0:00:14]} Nxb1 {[%emt 0:03:20]} 20. Rxb1 {[%emt 0:02:22]} Qc8 {[%emt 0:02:21]} 21. Nf1 {[%emt 0:01:45]} Bf5 {[%emt 0:02:42]} 22. Ng3 {[%emt 0:01:12]} Bxd3 {[%emt 0:00:09]} 23. Qxd3 {[%emt 0:00:09]} Qg4 {[%emt 0:00:56]} 24. Nf3 {[%emt 0:02:03]} Rad8 {[%emt 0:09:16]} 25. Re1 {[%emt 0:00:36]} Qd7 {[%emt 0:23:59]} 26. h5 {[%emt 0:07:05]} d5 {[%emt 0:03:25]} 27. hxg6 {[%emt 0:01:17]} hxg6 {[%emt 0:01:27]} 28. Rd1 {[%emt 0:02:19]} d4 {[%emt 0:00:36]} 29. Qe4 {[%emt 0:00:19]} Bf6 {[%emt 0:03:41]} 30. Ne2 {[%emt 0:01:50]} Qf5 {[%emt 0:01:32]} 31. Qxb7 {[%emt 0:00:56]} Rd7 {[%emt 0:02:02]} 32. Qc6 {[%emt 0:01:06]} Qe6 {[%emt 0:01:35]} 33. Qc5 {[%emt 0:01:18]} Qxe2 {[%emt 0:01:12]} 0-1

[Event "NOR-ch Youth 2019"]
[Site "Skien"]
[Date "2019.11.09"]
[Round "4.21"]
[White "Khoo-Thwe, Louis"]
[Black "Tenfjord Engelsen, Teodor"]
[Result "1-0"]
[ECO "C54"]
[WhiteElo "1660"]
[BlackElo "1349"]
[Annotator "NA RC"]
[PlyCount "47"]
[EventDate "2019.11.08"]
[EventType "swiss"]
[EventCountry "NOR"]
[SourceTitle "playchess.com"]
[Source "ChessBase"]
[SourceQuality "1"]
[TimeControl "5400+30"]

1. e4 {[%emt 0:00:00]} e5 {[%emt 0:00:00]} 2. Nf3 {[%emt 0:00:00]} Nc6 {[%emt 0:00:00]} 3. Bc4 {[%emt 0:00:00]} Nf6 {[%emt 0:00:00]} 4. d3 {[%emt 0:00:00]} Bc5 {[%emt 0:00:00]} 5. O-O {[%emt 0:00:00]} d6 {[%emt 0:00:36]} 6. c3 {[%emt 0:00:01]} O-O {[%emt 0:00:25]} 7. a4 {[%emt 0:00:06]} a6 {[%emt 0:00:31]} 8. Nbd2 {[%emt 0:00:03]} Be6 {[%emt 0:00:15]} 9. Re1 {[%emt 0:00:09]} Qe7 {[%emt 0:07:19]} 10. Nf1 {[%emt 0:00:54]} Rad8 {[%emt 0:06:50]} 11. Bxe6 {[%emt 0:02:05]} fxe6 {[%emt 0:00:14]} 12. d4 {[%emt 0:00:06]} exd4 {[%emt 0:01:42]} 13. cxd4 {[%emt 0:00:08]} Ba7 {[%emt 0:00:15]} 14. Ng3 {[%emt 0:03:10]} Nb8 {[%emt 0:13:37]} 15. Qb3 {[%emt 0:01:49]} c5 {[%emt 0:01:04]} 16. dxc5 {[%emt 0:02:24]} Bxc5 {[%emt 0:01:12]} 17. Bg5 {[%emt 0:04:07]} Nc6 {[%emt 0:07:28]} 18. Nf5 {[%emt 0:01:46]} Qd7 {[%emt 0:12:14]} 19. Rad1 {[%emt 0:02:40]} Rde8 {[%emt 0:09:05]} 20. Nxd6 {[%emt 0:01:06]} Bxd6 {[%emt 0:00:33]} 21. e5 {[%emt 0:00:06]} Nd5 {[%emt 0:00:12]} 22. exd6 {[%emt 0:00:22]} Rf7 {[%emt 0:00:56]} 23. h3 {[%emt 0:01:17]} Qxd6 {[%emt 0:03:26]} 24. Rxd5 {[%emt 0:00:31]} 1-0

[Event "NOR-ch Youth 2019"]
[Site "Skien"]
[Date "2019.11.09"]
[Round "4.22"]
[White "Ji, Jiahao Eric"]
[Black "Aasen, Alexander"]
[Result "1-0"]
[ECO "B22"]
[WhiteElo "1667"]
[BlackElo "1223"]
[Annotator "NA RC"]
[PlyCount "75"]
[EventDate "2019.11.08"]
[EventType "swiss"]
[EventCountry "NOR"]
[SourceTitle "playchess.com"]
[Source "ChessBase"]
[SourceQuality "1"]
[TimeControl "5400+30"]

1. e4 {[%emt 0:00:00]} c5 {[%emt 0:00:00]} 2. Nf3 {[%emt 0:00:00]} Nc6 {[%emt 0:00:00]} 3. c3 {[%emt 0:00:21]} d5 {[%emt 0:00:37]} 4. exd5 {[%emt 0:03:27]} Qxd5 {[%emt 0:00:11]} 5. d4 {[%emt 0:00:00]} cxd4 {[%emt 0:00:58]} 6. cxd4 {[%emt 0:01:32]} e6 {[%emt 0:02:10]} 7. Nc3 {[%emt 0:01:23]} Qd8 {[%emt 0:01:51]} 8. Bb5 {[%emt 0:00:42]} Nge7 {[%emt 0:01:38]} 9. O-O {[%emt 0:00:30]} g6 {[%emt 0:00:13]} 10. Ne4 {[%emt 0:01:55]} Bg7 {[%emt 0:01:08]} 11. Bf4 {[%emt 0:04:22]} O-O {[%emt 0:00:58]} 12. Qa4 {[%emt 0:02:36]} Nxd4 {[%emt 0:00:53]} 13. Nxd4 {[%emt 0:00:34]} Qxd4 {[%emt 0:01:14]} 14. Qxd4 {[%emt 0:00:11]} Bxd4 {[%emt 0:00:13]} 15. Bd6 {[%emt 0:00:06]} Nd5 {[%emt 0:05:49]} 16. Bxf8 {[%emt 0:00:47]} Kxf8 {[%emt 0:00:12]} 17. Nc3 {[%emt 0:02:52]} Bg7 {[%emt 0:03:07]} 18. Nxd5 {[%emt 0:00:16]} exd5 {[%emt 0:00:12]} 19. Rac1 {[%emt 0:02:02]} Bf5 {[%emt 0:00:54]} 20. Rc7 {[%emt 0:01:02]} b6 {[%emt 0:01:13]} 21. Re1 {[%emt 0:01:25]} Be6 {[%emt 0:02:33]} 22. b3 {[%emt 0:00:21]} h6 {[%emt 0:05:39]} 23. Bc6 {[%emt 0:02:09]} Rd8 {[%emt 0:01:12]} 24. Rxa7 {[%emt 0:00:16]} d4 {[%emt 0:00:25]} 25. Ra8 {[%emt 0:00:55]} Rxa8 {[%emt 0:00:19]} 26. Bxa8 {[%emt 0:00:02]} d3 {[%emt 0:00:27]} 27. Rd1 {[%emt 0:00:09]} Bf5 {[%emt 0:00:12]} 28. h3 {[%emt 0:00:28]} Bc3 {[%emt 0:00:08]} 29. g4 {[%emt 0:00:07]} Be6 {[%emt 0:01:20]} 30. Rxd3 {[%emt 0:00:12]} Bg7 {[%emt 0:00:55]} 31. Rd6 {[%emt 0:00:48]} h5 {[%emt 0:01:04]} 32. gxh5 {[%emt 0:00:22]} gxh5 {[%emt 0:00:14]} 33. Rxb6 {[%emt 0:00:13]} Bxh3 {[%emt 0:00:19]} 34. a4 {[%emt 0:01:05]} Bg4 {[%emt 0:00:16]} 35. a5 {[%emt 0:00:19]} h4 {[%emt 0:00:09]} 36. a6 {[%emt 0:01:32]} Ke8 {[%emt 0:01:12]} 37. a7 {[%emt 0:00:28]} Bd4 {[%emt 0:00:11]} 38. Bc6+ {[%emt 0:00:19]} 1-0